Cogmind - Beta 13 @@@ ROGUE MODE // 2024.05.20 @ 14:26:15 Player: GayPredator Result: Destroyed by H-66 Slayer with Heavy Assault Rifle Performance ------------- Evolutions (4) 2000 Regions Visited (16) 3200 Robots Destroyed (87) 435 Value Destroyed (5458) 5458 Prototype IDs (11) 220 Alien Tech Used (0) 0 Bonus (6550) 6550 TOTAL SCORE: 17863 Bonus ------- High Alert Combat Kills 743 Follower Combat Kills 1833 Entered Garrisons 1200 Used RIF Installer 2500 Aligned with FarCom 300 Friendly Fire -26 Cogmind --------- Core Integrity 0/850 Matter 254/300 Energy 99/100 System Corruption 16% Temperature Cool (0) Movement Core (50) Location -6/Garrison Parts ------- > --- POWER (1) -------- (None) > --- PROPULSION (4) --- (None) > --- UTILITY (7) ------ Improved System Shield > --- WEAPON (3) ------- (None) > --- INVENTORY (5) ---- Potential Leg Potential Leg High-capacity Matter Pod (175) Recoil Stabilizer Remote Datajack Peak State ------------ > --- POWER ------------ Reinforced Fission Core > --- PROPULSION ------- Carbon-fiber Leg Biometal Leg Potential Leg Potential Leg > --- UTILITY ---------- Large Storage Unit Hardened Heavy Armor Plating Relay Coupler [Swarmer] Relay Coupler [Grunt] Relay Coupler [Sentry] Relay Coupler [Hunter] > --- WEAPON ----------- Heavy Linear Accelerator Improved Remote Datajack > --- INVENTORY -------- Light Quantum Reactor Compact Wheel High-capacity Matter Pod Improved Kinecellerator Layered Light Armor Plating Layered Light Armor Plating Relay Coupler [Specialist] Relay Coupler [Behemoth] Flak Gun Heavy Flak Cannon Improved Datajack Improved Plasma Cutter [Rating: 88] Favorites ----------- Power Light Nuclear Core Engine Ion Engine Power Core Light Nuclear Core Reactor Light Quantum Reactor Propulsion Potential Leg Treads Armored Treads Leg Potential Leg Hover Unit Hover Unit Utility Large Storage Unit Device Improved Kinecellerator Storage Large Storage Unit Processor Machine Analyzer Hackware Relay Coupler [Grunt] Protection Hardened Light Armor Plating Weapon High-powered Shotgun Energy Gun Improved Medium Laser Energy Cannon Advanced Beam Cannon Ballistic Gun High-powered Shotgun Ballistic Cannon Heavy Linear Accelerator Launcher Rocket Launcher Special Weapon Improved Remote Datajack Slashing Weapon Power Sword Special Melee Weapon Improved Datajack Build | -11 -10 -10 -10 -9 -8 -8 -8 -8 -7 -7 -7 -7 -6 -6 -6 -6 ------- Run | Yrd Mat Min Exi Min Mat Gar Mat Gar Fac Gar Fac Gar Fac Gar Fac Gar Slots Evolved 8 | . . . . . 4 . . . 2 . . . 2 . . . Power . | . . . . . . . . . . . . . . . . . Propulsion 2 | . . . . . 1 . . . . . . . 1 . . . Utility 5 | . . . . . 2 . . . 2 . . . 1 . . . Weapon 1 | . . . . . 1 . . . . . . . . . . . Parts Attached 209 | 7 14 1 2 2 17 11 10 12 3 29 5 45 5 30 16 . Power 17 | 1 2 . . . 2 2 . 1 . 2 2 5 . . . . Engine 10 | 1 2 . . . 1 1 . . . 2 2 1 . . . . Core 6 | . . . . . 1 1 . 1 . . . 3 . . . . Reactor 1 | . . . . . . . . . . . . 1 . . . . Propulsion 34 | 2 5 1 2 . 3 1 . . . 1 . 3 1 10 5 . Treads 6 | 2 . . . . . . . . . . . . . . 4 . Leg 25 | . 2 1 2 . 3 1 . . . 1 . 3 1 10 1 . Wheel . | . . . . . . . . . . . . . . . . . Hover 3 | . 3 . . . . . . . . . . . . . . . Flight . | . . . . . . . . . . . . . . . . . Utility 87 | 2 3 . . 2 7 4 3 9 3 12 2 17 3 10 10 . Device 21 | 1 1 . . 1 4 1 . 2 1 2 . 2 . 1 5 . Storage 5 | 1 . . . . 1 . . . . . . 1 . 2 . . Processor 1 | . . . . . . . . . . . . . 1 . . . Hackware 38 | . . . . . . 2 2 6 1 7 . 10 2 5 3 . Protection 22 | . 2 . . 1 2 1 1 1 1 3 2 4 . 2 2 . Artifact . | . . . . . . . . . . . . . . . . . Weapon 71 | 2 4 . . . 5 4 7 2 . 14 1 20 1 10 1 . Energy Gun 4 | . 2 . . . 1 . . . . 1 . . . . . . Energy Cannon 13 | . . . . . 4 1 2 1 . 5 . . . . . . Ballistic Gun 11 | 2 1 . . . . 2 2 . . 1 . 2 . 1 . . Ballistic Cannon 5 | . 1 . . . . . . . . . . 1 . 3 . . Launcher 1 | . . . . . . . . . . 1 . . . . . . Special Weapon 31 | . . . . . . 1 3 1 . 6 1 13 1 5 . . Impact Weapon . | . . . . . . . . . . . . . . . . . Slashing Weapon 1 | . . . . . . . . . . . . . . . 1 . Piercing Weapon . | . . . . . . . . . . . . . . . . . Special Melee Weapon 5 | . . . . . . . . . . . . 4 . 1 . . Unidentified Prototypes 5 | . 1 . 1 1 1 . 1 . . . . . . . . . Parts Lost 23 | . 3 . . . 1 3 . 1 . 4 . 1 1 5 4 . Power 4 | . 1 . . . . 1 . . . 1 . 1 . . . . Propulsion 5 | . 2 . . . . . . . . 1 . . . 1 1 . Utility 9 | . . . . . 1 2 . 1 . . . . 1 3 1 . Weapon 5 | . . . . . . . . . . 2 . . . 1 2 . Highest Loss Streak 3 | . 2 . . . 1 2 . 1 . 3 . 1 1 3 2 . To Critical Strikes 1 | . . . . . . . . . . . . . . 1 . . Average Slot Usage (%) 93 | . 99 100 100 100 95 99 100 99 90 94 99 89 76 86 90 6 Engine 4 | . 14 14 14 14 3 7 . . . 4 6 1 . . . . Core 4 | . . . . . 5 1 9 9 7 2 . 4 6 6 5 . Treads 1 | . 6 . . . . . . . . . . . . . 9 . Leg 22 | . 12 28 28 28 25 27 27 27 23 22 23 23 20 24 13 . Device 6 | . 4 . . . 13 10 . 2 7 10 15 6 4 1 4 . Storage 9 | . 14 14 14 14 9 9 9 9 7 7 7 10 6 7 5 . Hackware 9 | . . . . . . 6 18 15 7 7 7 9 15 20 21 6 Protection 11 | . 9 14 14 13 10 9 9 8 13 14 15 14 6 7 9 . Energy Gun 4 | . 9 28 28 28 11 . . . . 1 7 1 . . . . Energy Cannon 3 | . . . . . 15 11 2 1 . 3 7 1 . . . . Ballistic Gun 6 | . 15 . . . . 14 18 18 15 10 . 1 . 2 5 . Ballistic Cannon 2 | . 3 . . . . . . . . . . 5 6 7 5 . Special Weapon 3 | . . . . . . 1 6 7 7 4 7 4 6 4 5 . Naked Turns 50 | . . . . . . . . . . . . . . . 50 . Heaviest Build 96 | 11 21 21 21 21 52 46 43 48 52 66 64 95 95 96 74 . Greatest Support 103 | 40 40 20 60 60 78 78 75 75 75 78 78 88 103 103 93 3 Greatest Overweight (x) 1 | . 1 1 1 . . . . . . . . 1 1 1 1 . Average Overweight (x) . | . . 1 . . . . . . . . . . . . . . Largest Inventory Capacity 15 | 8 8 8 8 8 15 15 15 15 15 15 15 15 15 15 15 5 Average Capacity 13 | 7 8 8 8 8 14 15 15 15 15 15 15 15 15 14 14 5 Most Carried 15 | 4 8 8 8 8 13 15 15 15 14 15 15 15 15 15 15 5 Average Carried 12 | 2 6 8 7 7 9 13 14 14 12 13 14 14 14 12 13 5 Final Capacity 15 | 8 8 8 8 8 15 15 15 15 15 15 15 15 15 15 5 5 Final Carried 15 | 4 8 8 8 8 12 15 15 15 13 15 15 15 14 13 5 5 Class Distribution -------------------- 18% | Bothacker-Tank 18% | Mutant 17% | Bothacker-Skirmisher 12% | Skirmisher 7% | Commander-Skirmisher 7% | Botlord-Tank 5% | Tank 4% | Botlord-Skirmisher 4% | Commander-Tank Dominant Class ---------------- Mutant | -10/Materials Mutant | -10/Mines Mutant | -10/Exiles Mutant | -9/Mines Skirmisher | -8/Materials Bothacker-Skirmisher | -8/Garrison Bothacker-Skirmisher | -8/Materials Bothacker-Skirmisher | -8/Garrison Bothacker-Tank | -7/Factory Bothacker-Tank | -7/Garrison Bothacker-Tank | -7/Factory Bothacker-Tank | -7/Garrison Commander-Skirmisher | -6/Factory Bothacker-Skirmisher | -6/Garrison Botlord-Tank | -6/Factory Mutant | -6/Garrison Resources | -11 -10 -10 -10 -9 -8 -8 -8 -8 -7 -7 -7 -7 -6 -6 -6 -6 ----------- Run | Yrd Mat Min Exi Min Mat Gar Mat Gar Fac Gar Fac Gar Fac Gar Fac Gar Matter Collected 4387 | 201 274 27 40 . 175 236 91 405 . 760 26 873 78 721 480 . Remotely . | . . . . . . . . . . . . . . . . . Salvage Created 2789 | 94 273 . . 30 623 440 . 152 . 547 36 276 . 165 153 . Parts 147 | 4 18 . . 4 34 17 . 12 . 23 4 16 . 8 7 . Haulers Intercepted 1 | . . . . . 1 . . . . . . . . . . . Recyclers Shooed 1 | . . . . . . . . . . . . . . . 1 . Parts Field Recycled . | . . . . . . . . . . . . . . . . . Retrieved Matter . | . . . . . . . . . . . . . . . . . Parts Self-Destructed . | . . . . . . . . . . . . . . . . . Prevented . | . . . . . . . . . . . . . . . . . Kills | -11 -10 -10 -10 -9 -8 -8 -8 -8 -7 -7 -7 -7 -6 -6 -6 -6 ------- Run | Yrd Mat Min Exi Min Mat Gar Mat Gar Fac Gar Fac Gar Fac Gar Fac Gar Combat Hostiles Destroyed 75 | . 4 . . 2 13 13 . 7 . 17 . 12 . 6 1 . Melee 1 | . . . . . . . . . . . . . . . 1 . Guns 39 | . 4 . . 2 3 9 . 7 . 8 . 6 . . . . Cannons 25 | . . . . . 9 4 . . . . . 6 . 6 . . AOE 9 | . . . . . . . . . . 9 . . . . . . Classes Destroyed 14 | 2 2 . . 1 5 . . . . 1 1 . . 1 1 . Worker 1 | . . . . . . . . . . . 1 . . . . . Tunneler 2 | 1 . . . . . . . . . . 1 . . . . . Hauler 1 | . . . . . 1 . . . . . . . . . . . Recycler 3 | 1 1 . . . . . . . . . . . . . 1 . Operator 2 | . . . . . 2 . . . . . . . . . . . Watcher 3 | . 2 . . . 1 . . . . . . . . . . . Swarmer 23 | . . . . 2 3 3 . 5 . 5 . 5 . . . . Grunt 31 | . 4 . . . 2 9 . 2 . 8 . 4 . 2 . . Brawler 4 | . . . . . . . . . . 2 . . . 2 . . Duelist 2 | . . . . . 1 . . . . . . 1 . . . . Sentry 9 | . . . . . 6 . . . . 2 . 1 . . . . Hunter 4 | . . . . . 1 1 . . . . . 1 . 1 . . Programmer 1 | . . . . . . . . . . . . . . . 1 . Heavy 1 | . . . . . . . . . . . . . . 1 . . Best Kill Streak 9 | 2 3 . . 2 4 8 . 5 . 9 1 4 . 1 1 . Combat Bots Only 9 | . 2 . . 2 4 8 . 5 . 9 . 4 . 1 1 . Max Kills in Single Turn 4 | 1 1 . . 1 1 1 . 2 . 4 1 2 . 1 1 . Gunslinging 1 | . . . . . . . . 1 . . . 1 . . . . Exploded 4 | . . . . . . . . . . 4 . . . . . . Melee 1 | . . . . . . . . . . . . . . . 1 . Uniques/NPCs Destroyed . | . . . . . . . . . . . . . . . . . Combat | -11 -10 -10 -10 -9 -8 -8 -8 -8 -7 -7 -7 -7 -6 -6 -6 -6 -------- Run | Yrd Mat Min Exi Min Mat Gar Mat Gar Fac Gar Fac Gar Fac Gar Fac Gar Hostile Shots Fired 842 | . 58 2 . 3 76 78 . 46 . 137 . 110 4 115 200 13 Missed 279 | . 24 . . . 29 19 . 15 . 45 . 33 2 32 74 6 Damage Taken 8071 | . 413 29 . 32 998 807 18 221 . 899 . 1232 98 1268 1931 125 Core 1510 | . 146 29 . 7 78 127 . 20 . 107 . 145 22 116 588 125 Absorbed by Shields 330 | . . . . . . . . 55 . 228 . . . 47 . . Redirected to Shielding 27 | . 27 . . . . . . . . . . . . . . . Regen/Repaired (Parts) 115 | . . . . . 115 . . . . . . . . . . . Core Remaining (%) 62 | 100 . . . 27 . . . 59 . . . 64 . . . . Volleys Fired 436 | 7 43 2 . 2 44 44 11 37 . 106 7 63 9 46 15 . Largest 3 | 2 2 2 . 2 3 3 1 2 . 3 1 3 1 3 2 . Hottest 204 | 40 112 112 . 112 204 161 75 75 . 125 75 183 83 136 81 . Shots Fired 717 | 14 86 4 . 4 123 98 11 50 . 138 7 76 9 71 26 . Gun 325 | 14 84 4 . 4 34 62 . 29 . 53 . 17 . 15 9 . Cannon 245 | . 2 . . . 89 36 1 2 . 25 7 31 1 40 11 . Launcher 9 | . . . . . . . . . . 9 . . . . . . Special 138 | . . . . . . . 10 19 . 51 . 28 8 16 6 . Kinetic 341 | 14 82 . . . . 62 . 29 . 51 . 27 1 55 20 . Thermal 264 | . 4 4 . 4 123 36 2 2 . 56 7 21 . 5 . . Explosive 9 | . . . . . . . . . . 9 . . . . . . Electromagnetic . | . . . . . . . . . . . . . . . . . Robot Hit Streak 22 | 3 12 4 . 2 10 6 8 6 . 22 7 11 6 7 6 . Robot Miss Streak 9 | 1 2 1 . 1 8 5 1 8 . 4 1 4 1 8 9 . Penetration Max 1 | . . . . . . . . . . . . 1 . . . . Secondary Targets 6 | . . . . 1 . 1 . 2 . . . 2 . . . . Max Gunslinging Chain 1 | . . . . 1 . 1 . 1 . . . 1 . . . . Shots Hit Robots 505 | 9 60 2 . 3 77 51 8 26 . 95 6 76 6 61 25 . Core Hits 209 | 5 17 1 . 2 25 29 . 12 . 46 2 20 . 29 21 . Critical Kills 1 | . . . . . . . . . . 1 . . . . . . Critical Parts Destroyed 2 | . 1 . . . . . . 1 . . . . . . . . Critical Strikes 10 | . 2 . . . 2 . . 1 . 2 . 2 . 1 . . Burn 3 | . 1 . . . 2 . . . . . . . . . . . Destroy 3 | . 1 . . . . . . 1 . 1 . . . . . . Blast 3 | . . . . . . . . . . . . 2 . 1 . . Sever 1 | . . . . . . . . . . 1 . . . . . . Melee Attacks 49 | . . . . . . . . . . . . 31 . 15 3 . Impact . | . . . . . . . . . . . . . . . . . Slashing 3 | . . . . . . . . . . . . . . . 3 . Piercing . | . . . . . . . . . . . . . . . . . Sneak Attacks 43 | . . . . . . . . . . . . 31 . 12 . . Combat Hostiles . | . . . . . . . . . . . . . . . . . Follow-up Attacks . | . . . . . . . . . . . . . . . . . Damage Inflicted 8692 | 69 531 36 . 66 1557 1008 . 254 . 2319 150 1106 . 964 632 . Guns 3371 | 69 498 36 . 66 443 721 . 254 . 722 . 241 . 104 217 . Cannons 3726 | . 33 . . . 1101 287 . . . 150 150 865 . 844 296 . Explosions 1020 | . . . . . . . . . . 1020 . . . . . . Melee 119 | . . . . . . . . . . . . . . . 119 . Ramming 13 | . . . . . 13 . . . . . . . . . . . Kinetic 4603 | 69 479 . . . . 721 . 254 . 669 . 950 . 948 513 . Thermal 2937 | . 52 36 . 66 1544 287 . . . 630 150 156 . 16 . . Explosive 1020 | . . . . . . . . . . 1020 . . . . . . Electromagnetic . | . . . . . . . . . . . . . . . . . Impact . | . . . . . . . . . . . . . . . . . Slashing 119 | . . . . . . . . . . . . . . . 119 . Piercing . | . . . . . . . . . . . . . . . . . Highest Corruption 16 | . . . . . . . 2 2 . . . . . 7 16 16 Average Corruption 5 | . . . . . . . 2 2 . . . . . 6 7 16 Corruption Purged . | . . . . . . . . . . . . . . . . . Corruption Blocked . | . . . . . . . . . . . . . . . . . Effects 62 | . . . . . . . 1 12 . . . . . 13 35 1 Message Errors 19 | . . . . . . . . 5 . . . . . 4 9 1 Matter Fused 16 | . . . . . . . . 2 . . . . . 5 9 . Heat Flow Errors 6 | . . . . . . . 1 1 . . . . . 1 3 . Energy Discharges 6 | . . . . . . . . . . . . . . 2 4 . Parts Rejected 2 | . . . . . . . . 1 . . . . . . 1 . Data Loss (minor) 5 | . . . . . . . . 1 . . . . . . 4 . Misfires 4 | . . . . . . . . 2 . . . . . . 2 . Misdirections 3 | . . . . . . . . . . . . . . . 3 . Weapon Failures 1 | . . . . . . . . . . . . . . 1 . . Overload Shots . | . . . . . . . . . . . . . . . . . Overflow Damage 172 | . . . . . 31 1 . . . 13 10 91 . 4 22 . Projectiles 137 | . . . . . 31 1 . . . . 10 91 . 4 . . Explosions 13 | . . . . . . . . . . 13 . . . . . . Melee 22 | . . . . . . . . . . . . . . . 22 . Knockbacks 18 | . . . . . . . . . . . . 1 . 8 9 . Impact . | . . . . . . . . . . . . . . . . . Kinetic 16 | . . . . . . . . . . . . 1 . 8 7 . Secondary 2 | . . . . . . . . . . . . . . . 2 . Self-Inflicted Damage 88 | . . . . . . . . . . . . 88 . . . . Shots 1 | . . . . . . . . . . . . 1 . . . . Rammed . | . . . . . . . . . . . . . . . . . Targets Rammed 3 | . . 1 . . 2 . . . . . . . . . . . Kicked 3 | . . 1 . . 2 . . . . . . . . . . . Crushed . | . . . . . . . . . . . . . . . . . Highest Temperature 551 | . 66 132 . 66 520 319 172 131 . 318 95 285 52 551 147 . Average Temperature 111 | . 16 68 . 34 133 99 72 37 . 85 38 90 32 205 52 . Received Heat Transfer 1583 | . 267 15 . . 252 369 9 36 . 230 . 204 9 111 72 9 Effects 25 | . . . . . 7 . . . . 1 . . . 17 . . Shutdowns 5 | . . . . . 1 . . . . . . . . 4 . . Energy Bleed 3 | . . . . . 1 . . . . . . . . 2 . . Interference 9 | . . . . . 5 . . . . 1 . . . 3 . . Matter Decay 1 | . . . . . . . . . . . . . . 1 . . Short Circuit 2 | . . . . . . . . . . . . . . 2 . . Damage (minor) 1 | . . . . . . . . . . . . . . 1 . . Damage (major) 4 | . . . . . . . . . . . . . . 4 . . Siege Activations . | . . . . . . . . . . . . . . . . . Robots Corrupted . | . . . . . . . . . . . . . . . . . Combat Hostiles . | . . . . . . . . . . . . . . . . . Parts Fried . | . . . . . . . . . . . . . . . . . Impact Corruptions . | . . . . . . . . . . . . . . . . . Robots Melted 1 | . . . . . 1 . . . . . . . . . . . Combat Hostiles 1 | . . . . . 1 . . . . . . . . . . . Parts Melted 11 | . . . . . 8 1 . . . . . 2 . . . . Heat Transferred 5380 | . 185 74 . 148 3108 479 . . . 840 222 287 . 37 . . Parts Sabotaged . | . . . . . . . . . . . . . . . . . Parts Stolen . | . . . . . . . . . . . . . . . . . Parts Stripped . | . . . . . . . . . . . . . . . . . Power Chain Reactions . | . . . . . . . . . . . . . . . . . Alert | -11 -10 -10 -10 -9 -8 -8 -8 -8 -7 -7 -7 -7 -6 -6 -6 -6 ------- Run | Yrd Mat Min Exi Min Mat Gar Mat Gar Fac Gar Fac Gar Fac Gar Fac Gar Peak Influence 1521 | 10 137 65 . 145 533 901 515 729 382 952 533 1521 798 970 517 250 Initial 798 | . 6 8 . . 56 308 438 321 382 267 491 373 798 525 498 219 Average 582 | 2 29 35 . 138 320 624 470 612 382 680 508 990 777 877 388 235 Maximum Alert Level 4 | . . . . . 2 3 2 3 1 3 2 4 3 3 2 1 Low Security (%) 14 | 100 100 100 . 100 14 . . . . . . . . . . . Level 1 19 | . . . . . 58 22 . 8 100 20 . 4 . . 59 100 Level 2 28 | . . . . . 27 26 100 66 . 22 100 25 5 13 40 . Level 3 31 | . . . . . . 50 . 24 . 56 . 35 94 86 . . Level 4 6 | . . . . . . . . . . . . 35 . . . . Level 5 . | . . . . . . . . . . . . . . . . . High Security . | . . . . . . . . . . . . . . . . . Max Security . | . . . . . . . . . . . . . . . . . Squads Dispatched 13 | . 2 . . . 6 . 1 . . . . . 2 . 2 . Investigation 2 | . 1 . . . 1 . . . . . . . . . . . Extermination 1 | . . . . . . . . . . . . . . . 1 . Reinforcement 5 | . 1 . . . 2 . 1 . . . . . . . 1 . Assault . | . . . . . . . . . . . . . . . . . Garrison 5 | . . . . . 3 . . . . . . . 2 . . . Intercept . | . . . . . . . . . . . . . . . . . Searches Triggered . | . . . . . . . . . . . . . . . . . Construction Impeded 1 | . . . . . . . . . . . . . . . 1 . Haulers Reinforced . | . . . . . . . . . . . . . . . . . Active Scanning Responses . | . . . . . . . . . . . . . . . . . Cargo Convoy Interrupts 1 | . . . . . . . . . . . . . . . 1 . Stealth | -11 -10 -10 -10 -9 -8 -8 -8 -8 -7 -7 -7 -7 -6 -6 -6 -6 --------- Run | Yrd Mat Min Exi Min Mat Gar Mat Gar Fac Gar Fac Gar Fac Gar Fac Gar Distress Signals 8 | . . . . . 7 . . . . . 1 . . . . . Communications Jammed . | . . . . . . . . . . . . . . . . . Distress Signals . | . . . . . . . . . . . . . . . . . Times Spotted 259 | . 7 2 . 6 46 18 7 22 . 35 1 48 9 30 24 4 Peak Tracking Total 13 | . 3 1 . 3 8 13 3 7 . 5 2 6 4 7 10 7 Tactical Retreats 16 | . 1 . . . 7 4 . . . . . 3 . . 1 . Traps | -11 -10 -10 -10 -9 -8 -8 -8 -8 -7 -7 -7 -7 -6 -6 -6 -6 ------- Run | Yrd Mat Min Exi Min Mat Gar Mat Gar Fac Gar Fac Gar Fac Gar Fac Gar Traps Triggered 18 | . 1 . . . 1 1 1 . . 1 . 9 . 1 3 . Indirectly . | . . . . . . . . . . . . . . . . . Trap Hack Attempts . | . . . . . . . . . . . . . . . . . Triggered . | . . . . . . . . . . . . . . . . . Disarmed . | . . . . . . . . . . . . . . . . . Reprogrammed . | . . . . . . . . . . . . . . . . . Reused . | . . . . . . . . . . . . . . . . . Traps Extracted . | . . . . . . . . . . . . . . . . . Installed . | . . . . . . . . . . . . . . . . . Triggered . | . . . . . . . . . . . . . . . . . Machines | -11 -10 -10 -10 -9 -8 -8 -8 -8 -7 -7 -7 -7 -6 -6 -6 -6 ---------- Run | Yrd Mat Min Exi Min Mat Gar Mat Gar Fac Gar Fac Gar Fac Gar Fac Gar Machines Disabled 16 | . 1 . . . 1 3 . 4 . 1 . 5 . 1 . . Max in Single Turn 2 | . 1 . . . 1 1 . 1 . 1 . 2 . 1 . . Garrison Relay 19 | . . . . . . 3 . 4 . 3 . 7 . 2 . . Phase Generator 2 | . . . . . . . . . . . . 1 . 1 . . Machines Repaired . | . . . . . . . . . . . . . . . . . Machines Dismantled 14 | . . . . . . . . . . 2 1 8 1 2 . . Machines Sabotaged . | . . . . . . . . . . . . . . . . . Overloaded Fab Kills . | . . . . . . . . . . . . . . . . . Hacking | -11 -10 -10 -10 -9 -8 -8 -8 -8 -7 -7 -7 -7 -6 -6 -6 -6 --------- Run | Yrd Mat Min Exi Min Mat Gar Mat Gar Fac Gar Fac Gar Fac Gar Fac Gar Machines Accessed 37 | . 1 . 1 1 2 3 5 3 1 2 4 1 2 3 6 2 Terminals 23 | . 1 . . . . 3 3 3 . 2 1 1 . 3 4 2 Fabricators 2 | . . . . . . . . . . . 1 . . . 1 . Repair Stations 3 | . . . . . 1 . . . . . 1 . 1 . . . Recycling Units . | . . . . . . . . . . . . . . . . . Scanalyzers 1 | . . . . . . . 1 . . . . . . . . . Garrison Access 6 | . . . . . 1 . 1 . 1 . 1 . 1 . 1 . Total Hacks 79 | . 7 . 1 1 4 5 20 8 1 3 9 1 2 4 11 2 Successful 46 | . 3 . 1 1 3 3 14 2 1 2 5 1 1 3 4 2 Failed 33 | . 4 . . . 1 2 6 6 . 1 4 . 1 1 7 . Catastrophic 9 | . 1 . . . . . 2 2 . 1 . . . . 3 . Database Lockouts . | . . . . . . . . . . . . . . . . . Manual 21 | . 4 . 1 . . . 9 . . . . . . . 7 . Terminals 51 | . 7 . . . . 5 12 8 . 3 1 1 . 4 8 2 Fabricators 5 | . . . . . . . . . . . 3 . . . 2 . Repair Stations 8 | . . . . . 3 . . . . . 4 . 1 . . . Recycling Units . | . . . . . . . . . . . . . . . . . Scanalyzers 7 | . . . . . . . 7 . . . . . . . . . Garrison Access 6 | . . . . . 1 . 1 . 1 . 1 . 1 . 1 . Terminal Hacks 22 | . 2 . 1 1 . 3 4 2 . 2 1 1 . 3 . 2 Record 1 | . . . 1 . . . . . . . . . . . . . Part Schematic 1 | . . . . . . . 1 . . . . . . . . . Robot Analysis 1 | . 1 . . . . . . . . . . . . . . . Prototype ID Bank 1 | . . . . . . . 1 . . . . . . . . . Open Door 2 | . . . . 1 . . . . . . . . . 1 . . Open DSF 1 | . . . . . . . . . . . 1 . . . . . Emergency Access Points 6 | . . . . . . 1 . 1 . 1 . 1 . 1 . 1 Garrison Index 1 | . . . . . . . 1 . . . . . . . . . Zone Layout 2 | . 1 . . . . . 1 . . . . . . . . . Garrison Registry 4 | . . . . . . 1 . 1 . 1 . . . 1 . . Patrol Navigation 1 | . . . . . . . . . . . . . . . . 1 Security Stations 1 | . . . . . . 1 . . . . . . . . . . Fabricator Hacks 4 | . . . . . . . . . . . 2 . . . 2 . Network Status 2 | . . . . . . . . . . . 1 . . . 1 . Load Schematic 1 | . . . . . . . . . . . 1 . . . . . Build 1 | . . . . . . . . . . . . . . . 1 . Repair Station Hacks 3 | . . . . . 2 . . . . . 1 . . . . . Scan Component 2 | . . . . . 1 . . . . . 1 . . . . . Repair 1 | . . . . . 1 . . . . . . . . . . . Recycling Unit Hacks . | . . . . . . . . . . . . . . . . . Scanalyzer 7 | . . . . . . . 7 . . . . . . . . . Insert Component 3 | . . . . . . . 3 . . . . . . . . . Analyze 4 | . . . . . . . 4 . . . . . . . . . Garrison Access Hacks 6 | . . . . . 1 . 1 . 1 . 1 . 1 . 1 . Unlock Access 6 | . . . . . 1 . 1 . 1 . 1 . 1 . 1 . Unauthorized Hacks 4 | . 1 . . . . . 2 . . . . . . . 1 . Terminals 4 | . 1 . . . . . 2 . . . . . . . 1 . Botnet 2 | . . . . . . . 1 . . . . . . . 1 . Disrupt 1 | . 1 . . . . . . . . . . . . . . . Operators 1 | . . . . . . . 1 . . . . . . . . . Fabricators . | . . . . . . . . . . . . . . . . . Repair Stations . | . . . . . . . . . . . . . . . . . Recycling Units . | . . . . . . . . . . . . . . . . . Scanalyzers . | . . . . . . . . . . . . . . . . . Garrison Access . | . . . . . . . . . . . . . . . . . Data Cores Recovered . | . . . . . . . . . . . . . . . . . Used . | . . . . . . . . . . . . . . . . . Hacking Detections 26 | . 1 . . . 1 1 4 3 1 1 3 1 2 2 5 1 Full Trace Events 2 | . . . . . . . . 1 . 1 . . . . . . Feedback Events . | . . . . . . . . . . . . . . . . . Feedback Blocked . | . . . . . . . . . . . . . . . . . Robot Schematics Acquired . | . . . . . . . . . . . . . . . . . Robots Built 1 | . . . . . . . . . . . . . . . 1 . Authchips . | . . . . . . . . . . . . . . . . . Time 152 | . . . . . . . . . . . . . . . 152 . Total Robot Build Rating 5 | . . . . . . . . . . . . . . . 5 . Part Schematics Acquired 4 | . . . . . . . 4 . . . . . . . . . Parts Built . | . . . . . . . . . . . . . . . . . Authchips . | . . . . . . . . . . . . . . . . . Time . | . . . . . . . . . . . . . . . . . Total Part Build Rating . | . . . . . . . . . . . . . . . . . Parts Repaired 1 | . . . . . 1 . . . . . . . . . . . Time 32 | . . . . . 32 . . . . . . . . . . . Parts Recycled . | . . . . . . . . . . . . . . . . . Recycled Matter . | . . . . . . . . . . . . . . . . . Retrieved Matter . | . . . . . . . . . . . . . . . . . Retrieved Components . | . . . . . . . . . . . . . . . . . Parts Scanalyzed 3 | . . . . . . . 3 . . . . . . . . . Part Schematics Acquired 3 | . . . . . . . 3 . . . . . . . . . Parts Damaged . | . . . . . . . . . . . . . . . . . Bothacking | -11 -10 -10 -10 -9 -8 -8 -8 -8 -7 -7 -7 -7 -6 -6 -6 -6 ------------ Run | Yrd Mat Min Exi Min Mat Gar Mat Gar Fac Gar Fac Gar Fac Gar Fac Gar Used RIF Installer 5 | . . . . . . 1 . 1 . 1 . 1 . 1 . . Coupler Efficiency 1 | . . . . . . . . . . . . 1 . . . . Command Fork 1 | . . . . . . . . . . 1 . . . . . . Zone Cloak 1 | . . . . . . . . 1 . . . . . . . . Autooverride 1 | . . . . . . . . . . . . . . 1 . . Robots Hacked 67 | . . . . . . . 7 10 . 12 . 21 5 9 3 . Non-combat 8 | . . . . . . . 5 . . . . 1 1 . 1 . Combat 59 | . . . . . . . 2 10 . 12 . 20 4 9 2 . Robot Hacks Applied 70 | . . . . . . . 8 10 . 12 . 21 6 9 4 . parse_system 1 | . . . . . . . . . . . . 1 . . . . map_walls 1 | . . . . . . . 1 . . . . . . . . . find_fabricator 2 | . . . . . . . . . . . . . 1 . 1 . drop_inventory 3 | . . . . . . . 2 . . . . . . . 1 . map_route 1 | . . . . . . . 1 . . . . . . . . . overload_power 3 | . . . . . . . 2 . . . . . . 1 . . amplify_resonance 5 | . . . . . . . . 1 . 2 . . . 1 1 . disable_weapons 1 | . . . . . . . . . . . . 1 . . . . reboot_system 5 | . . . . . . . . 1 . 2 . 1 . 1 . . overwrite_iff 12 | . . . . . . . 1 2 . 2 . 4 3 . . . streamctrl_high 4 | . . . . . . . . 3 . . . . . 1 . . formatsys_high 32 | . . . . . . . 1 3 . 6 . 14 2 5 1 . Relay Couplers Released 75 | . . . . . . 13 . 16 . 12 . 26 . 8 . . Machine Destruction 75 | . . . . . . 13 . 16 . 12 . 26 . 8 . . Attached 35 | . . . . . . 1 2 5 1 7 . 10 2 5 2 . Fabnet Peak Effective % . | . . . . . . . . . . . . . . . . . Robots Rewired 20 | . . . . . . . . . . . . 16 . 4 . . Allies Hacked 1 | . . . . . . . . . . . . . . . 1 . Hacks Repelled . | . . . . . . . . . . . . . . . . . Allies | -11 -10 -10 -10 -9 -8 -8 -8 -8 -7 -7 -7 -7 -6 -6 -6 -6 -------- Run | Yrd Mat Min Exi Min Mat Gar Mat Gar Fac Gar Fac Gar Fac Gar Fac Gar Total Allies 77 | . . 3 . . 2 . 2 8 . 8 . 37 5 10 2 . Largest Group 24 | . . 3 2 2 1 . 1 1 1 4 . 24 24 23 2 . Highest-Rated Group 578 | . . 40 32 32 16 . 16 16 5 84 . 453 475 578 55 . Highest-Rated Ally 46 | . . 16 16 16 16 . 16 16 5 32 . 32 41 46 32 . Total Orders 8 | . . . . 1 6 . . . . . . . . . 1 . ROAM 1 | . . . . . 1 . . . . . . . . . . . FOLLOW 1 | . . . . . 1 . . . . . . . . . . . AID 1 | . . . . . . . . . . . . . . . 1 . EXPLORE 2 | . . . . . 2 . . . . . . . . . . . RETURN 3 | . . . . 1 2 . . . . . . . . . . . Ally Attacks 445 | . . 12 . 7 33 . 8 21 . 59 . 150 22 126 7 . Total Damage 7150 | . . 132 . 94 326 . 107 113 . 1068 . 1972 608 2415 315 . Kills 71 | . . 3 . 4 6 . 1 3 . 8 . 19 3 21 3 . Allies Corrupted . | . . . . . . . . . . . . . . . . . Allies Melted . | . . . . . . . . . . . . . . . . . Intel | -11 -10 -10 -10 -9 -8 -8 -8 -8 -7 -7 -7 -7 -6 -6 -6 -6 ------- Run | Yrd Mat Min Exi Min Mat Gar Mat Gar Fac Gar Fac Gar Fac Gar Fac Gar Robot Analysis Total 1 | . 1 . . . . . . . . . . . . . . . Derelict Logs Recovered . | . . . . . . . . . . . . . . . . . Drone Launches 16 | . . . . 1 15 . . . . . . . . . . . Drone Recoveries 13 | . . . . 1 12 . . . . . . . . . . . Exploration | -11 -10 -10 -10 -9 -8 -8 -8 -8 -7 -7 -7 -7 -6 -6 -6 -6 ------------- Run | Yrd Mat Min Exi Min Mat Gar Mat Gar Fac Gar Fac Gar Fac Gar Fac Gar Turns Passed 9670 | 110 616 300 415 157 933 932 222 681 41 1017 268 1592 332 961 1055 38 Spaces Moved 6580 | 43 343 152 322 149 655 672 187 542 36 641 224 1036 155 549 799 75 Core 253 | 3 . . . . . . . . . . . . . . 175 75 Treads 326 | 40 83 . . . . . . . . . . . . . 203 . Legs 5876 | . 135 152 322 149 655 672 187 542 36 641 224 1036 155 549 421 . Wheels . | . . . . . . . . . . . . . . . . . Hover 125 | . 125 . . . . . . . . . . . . . . . Flight . | . . . . . . . . . . . . . . . . . Fastest Speed 50 | 50 56 190 90 90 60 60 60 60 100 60 100 60 102 80 50 50 Average Speed 110 | 152 130 190 124 90 95 97 96 99 100 99 100 108 164 127 115 50 Slowest Speed 250 | 160 190 190 190 90 100 100 100 100 100 100 100 176 172 186 250 50 Overloaded Moves 230 | . . . . . 45 46 15 1 . 9 . 99 . 15 . . Propulsion Burnouts . | . . . . . . . . . . . . . . . . . Robots Hopped . | . . . . . . . . . . . . . . . . . Cave-ins Triggered . | . . . . . . . . . . . . . . . . . Exploration Rate (%) 40 | 6 45 40 71 34 51 77 31 60 1 69 6 95 6 59 23 18 Regions Visited 16 Branch Regions 3 Pre-discovered Areas 1 | . . . 1 . . . . . . . . . . . . . Known Exits Taken 6 | . . . . . 1 . 1 . 1 . 1 . 1 . 1 . Unknown Exits Taken 5 | 1 1 1 1 1 . . . . . . . . . . . . Scrap Searched . | . . . . . . . . . . . . . . . . . Spaces Dug 4 | . . . . . . . 1 . . . . . 1 2 . . Terrain Destroyed 140 | . . . . . . . 1 . . 46 . 83 1 9 . . Melee . | . . . . . . . . . . . . . . . . . Projectile 19 | . . . . . . . 1 . . . . 8 1 9 . . AOE 121 | . . . . . . . . . . 46 . 75 . . . . Terrain Rammed . | . . . . . . . . . . . . . . . . . Walls Destroyed . | . . . . . . . . . . . . . . . . . Machines Disabled . | . . . . . . . . . . . . . . . . . Actions | -11 -10 -10 -10 -9 -8 -8 -8 -8 -7 -7 -7 -7 -6 -6 -6 -6 --------- Run | Yrd Mat Min Exi Min Mat Gar Mat Gar Fac Gar Fac Gar Fac Gar Fac Gar Total 8256 | 73 444 159 335 167 865 869 221 647 41 861 253 1401 220 718 907 75 Wait 676 | 13 24 3 6 11 128 121 5 42 . 51 5 135 38 36 58 . Move 6569 | 42 342 151 321 148 655 671 187 541 36 640 224 1035 154 548 799 75 Hop . | . . . . . . . . . . . . . . . . . Pick Up 90 | 4 8 . 2 2 9 11 2 6 1 14 1 10 3 11 6 . Fast Attach 75 | 7 9 . 2 . 8 2 3 2 . 3 3 14 2 12 8 . Attach 56 | . 2 . . . 5 4 2 5 3 12 . 9 1 10 3 . Detach 13 | . 2 . . . 1 1 . . . 1 . 4 . 3 1 . Swap 78 | . 3 1 . 2 4 5 5 5 . 14 2 22 2 8 5 . Drop 116 | . 11 1 4 2 9 8 6 8 1 11 4 26 4 12 9 . Fire 436 | 7 43 2 . 2 44 44 11 37 . 106 7 63 9 46 15 . Melee 49 | . . . . . . . . . . . . 31 . 15 3 . Ram . | . . . . . . . . . . . . . . . . . Kick 3 | . . 1 . . 2 . . . . . . . . . . . Crush . | . . . . . . . . . . . . . . . . . Escape Stasis 19 | . . . . . . 2 . . . . . 15 . 2 . . Rewire 14 | . . . . . . . . 1 . 3 . 8 1 1 . . Trap . | . . . . . . . . . . . . . . . . . Miscellaneous 62 | . . . . . . . . . . 6 7 29 6 14 . . Route ------- -11/Scrapyard -10/Materials -10/Mines (discovered 2 exits: [*Mat] / *Exi) -10/Exiles -9/Mines -8/Materials (discovered 4 exits: *Fac x3 / Gar) -8/Garrison (discovered 3 exits: *Mat x3) -8/Materials -8/Garrison (discovered 3 exits: *Fac x3) -7/Factory -7/Garrison (discovered 4 exits: *Fac x4) -7/Factory (discovered 2 exits: *Fac / Gar) -7/Garrison (discovered 3 exits: *Fac x3) -6/Factory -6/Garrison (discovered 3 exits: *Fac x3) -6/Factory (discovered 3 exits: [*Low] / [*Ext] / Gar) -6/Garrison History --------- Turn | Location | Event 8 | -11/Scrapyard | Discovered new exit (range 16) 111 | -11/Scrapyard | Entered Materials 334 | -10/Materials | Build established: Mutant 430 | -10/Materials | Core integrity fell below 50% 693 | -10/Materials | Discovered new exit (range 16) 727 | -10/Materials | Entered Mines 852 | -10/Mines | Assisted by bots powering up and referring to "LRC-V3" 869 | -10/Mines | Discovered new exit (range 6) 1017 | -10/Mines | Deemed a non-threat by the Exiles lab entrance 1019 | -10/Mines | Discovered new exit (range 5) 1027 | -10/Mines | Entered Exiles 1027 | -10/Exiles | Accompanied by 2 allies 1075 | -10/Exiles | Met 8R-AWN 1107 | -10/Exiles | Met EX-HEX 1160 | -10/Exiles | Met EX-BIN 1181 | -10/Exiles | Aligned with FarCom system 1183 | -10/Exiles | Given EX-Vault access code 1227 | -10/Exiles | Opened EX-Vault 1241 | -10/Exiles | Found Prototype Leg 1241 | -10/Exiles | Identified Potential Leg 1244 | -10/Exiles | Found Potential Leg 1265 | -10/Exiles | Warned to stay clear of 0b10 Research branches 1291 | -10/Exiles | Met EX-DEC 1295 | -10/Exiles | Learned location of Zion (-6) 1428 | -10/Exiles | Discovered new exit (range 10) 1442 | -10/Exiles | Left Exiles lab with Potential Leg 1442 | -10/Exiles | Entered Mines 1442 | -9/Mines | Accompanied by 2 allies 1458 | -9/Mines | Discovered new exit (range 6) 1480 | -9/Mines | A weapon hastily lodged in a ceiling crevice suddenly fell to the ground 1508 | -9/Mines | Found the Drone Emporium 1512 | -9/Mines | Found Prototype Device 1517 | -9/Mines | Identified Splice Drone Bay 1599 | -9/Mines | Entered Materials 1599 | -8/Materials | Accompanied by 1 ally 1599 | -8/Materials | Evolved 4 slots: Propulsion x1, Utility x2, Weapon x1 1949 | -8/Materials | Discovered new exit (range 5) 2103 | -8/Materials | Build established: Skirmisher 2194 | -8/Materials | Garrison activated, responded to threat 2196 | -8/Materials | Discovered new exit (range 23) 2304 | -8/Materials | Discovered new exit (range 16) 2428 | -8/Materials | Repaired Hrd. Light Armor Plating 2532 | -8/Materials | Identified exit to Garrison 2532 | -8/Materials | Entered Garrison 2619 | -8/Garrison | Installed Relay Interface Framework 2712 | -8/Garrison | Triggered checkpoint 2717 | -8/Garrison | Triggered checkpoint 2824 | -8/Garrison | Triggered checkpoint 2827 | -8/Garrison | Destroyed 8 combat bots 2904 | -8/Garrison | Discovered new exit (range 8) 2953 | -8/Garrison | Garrison Relay disabled 3186 | -8/Garrison | Discovered new exit (range 11) 3192 | -8/Garrison | Discovered new exit (range 60) 3192 | -8/Garrison | Discovered new exit (range 11) 3192 | -8/Garrison | Discovered new exit (range 81) 3228 | -8/Garrison | Garrison Relay disabled 3244 | -8/Garrison | Triggered checkpoint 3261 | -8/Garrison | Build established: Bothacker-Skirmisher 3356 | -8/Garrison | Triggered checkpoint 3408 | -8/Garrison | Garrison Relay disabled 3414 | -8/Garrison | Triggered checkpoint 3450 | -8/Garrison | Learned Materials security intel 3464 | -8/Garrison | Entered Materials 3686 | -8/Materials | Identified exit to Garrison 3686 | -8/Materials | Entered Garrison 3708 | -8/Garrison | Triggered checkpoint 3732 | -8/Garrison | Garrison Relay disabled 3873 | -8/Garrison | Discovered new exit (range 10) 3894 | -8/Garrison | Triggered checkpoint 3923 | -8/Garrison | Garrison Relay disabled 3996 | -8/Garrison | Triggered checkpoint 4031 | -8/Garrison | Discovered new exit (range 10) 4062 | -8/Garrison | Triggered checkpoint 4077 | -8/Garrison | Garrison Relay disabled 4143 | -8/Garrison | Lost 3 allies 4173 | -8/Garrison | Discovered new exit (range 55) 4173 | -8/Garrison | Discovered new exit (range 12) 4173 | -8/Garrison | Discovered new exit (range 41) 4262 | -8/Garrison | Triggered checkpoint 4297 | -8/Garrison | Expanded RIF knowledge: Zone Cloak 4319 | -8/Garrison | Garrison Relay disabled 4367 | -8/Garrison | Entered Factory 4367 | -7/Factory | Accompanied by 1 ally 4367 | -7/Factory | Evolved 2 slots: Utility x2 4408 | -7/Factory | Identified exit to Garrison 4408 | -7/Factory | Entered Garrison 4408 | -7/Garrison | Accompanied by 1 ally 4424 | -7/Garrison | Triggered checkpoint 4669 | -7/Garrison | Garrison Relay disabled 4672 | -7/Garrison | Triggered checkpoint 4704 | -7/Garrison | Build established: Bothacker-Tank 4704 | -7/Garrison | Expanded RIF knowledge: Command Fork 4802 | -7/Garrison | Triggered checkpoint 4848 | -7/Garrison | Triggered checkpoint 4886 | -7/Garrison | Destroyed 9 combat bots 4900 | -7/Garrison | Discovered new exit (range 11) 4994 | -7/Garrison | Triggered checkpoint 5014 | -7/Garrison | Garrison Relay disabled 5124 | -7/Garrison | Triggered checkpoint 5170 | -7/Garrison | Triggered checkpoint 5191 | -7/Garrison | Lost 3 allies 5237 | -7/Garrison | Lost 3 parts (1p1n1w) 5268 | -7/Garrison | Discovered new exit (range 5) 5317 | -7/Garrison | Discovered new exit (range 8) 5351 | -7/Garrison | Discovered new exit (range 19) 5351 | -7/Garrison | Discovered new exit (range 61) 5351 | -7/Garrison | Discovered new exit (range 35) 5351 | -7/Garrison | Discovered new exit (range 44) 5388 | -7/Garrison | Garrison Relay disabled 5425 | -7/Garrison | Entered Factory 5564 | -7/Factory | Discovered new exit (range 10) 5575 | -7/Factory | Identified exit to DSF 5693 | -7/Factory | Identified exit to Garrison 5693 | -7/Factory | Entered Garrison 5721 | -7/Garrison | Triggered checkpoint 5742 | -7/Garrison | Garrison Relay disabled 5910 | -7/Garrison | Heavy support dispatched to Factory 5969 | -7/Garrison | Phase Generator disabled 6037 | -7/Garrison | Expanded RIF knowledge: Coupler Efficiency 6091 | -7/Garrison | Triggered checkpoint 6161 | -7/Garrison | Triggered checkpoint 6161 | -7/Garrison | Triggered checkpoint 6262 | -7/Garrison | Heavy support dispatched to Factory 6286 | -7/Garrison | Garrison Relay disabled 6320 | -7/Garrison | Discovered new exit (range 10) 6403 | -7/Garrison | Garrison Relay disabled 6441 | -7/Garrison | Triggered checkpoint 6453 | -7/Garrison | Triggered checkpoint 6467 | -7/Garrison | Heavy support dispatched to Factory 6492 | -7/Garrison | Triggered checkpoint 6601 | -7/Garrison | Discovered new exit (range 10) 6657 | -7/Garrison | Triggered checkpoint 6681 | -7/Garrison | Garrison Relay disabled 6709 | -7/Garrison | Triggered checkpoint 6713 | -7/Garrison | Lost 4 allies 6783 | -7/Garrison | Garrison Relay disabled 6877 | -7/Garrison | Discovered new exit (range 14) 6879 | -7/Garrison | Triggered checkpoint 6923 | -7/Garrison | Triggered checkpoint 6933 | -7/Garrison | Triggered checkpoint 6940 | -7/Garrison | Garrison Relay disabled 6963 | -7/Garrison | Build established: Commander-Tank 6990 | -7/Garrison | H-XX Assembler disabled 7156 | -7/Garrison | Garrison Relay disabled 7285 | -7/Garrison | Entered Factory 7285 | -6/Factory | Accompanied by 23 allies 7285 | -6/Factory | Evolved 2 slots: Propulsion x1, Utility x1 7437 | -6/Factory | Build established: Commander-Skirmisher 7516 | -6/Factory | Garrison activated, responded to threat 7575 | -6/Factory | Identified exit to Garrison 7592 | -6/Factory | Lost 9 allies 7617 | -6/Factory | Entered Garrison 7617 | -6/Garrison | Accompanied by 18 allies 7663 | -6/Garrison | Lost 3 allies 7669 | -6/Garrison | Garrison Relay disabled 7677 | -6/Garrison | Triggered checkpoint 7770 | -6/Garrison | Lost 4 allies 7793 | -6/Garrison | Heavy support dispatched to Factory 7795 | -6/Garrison | Triggered checkpoint 7795 | -6/Garrison | Triggered checkpoint 7815 | -6/Garrison | Triggered checkpoint 7849 | -6/Garrison | Lost 7 allies 7849 | -6/Garrison | Triggered checkpoint 7916 | -6/Garrison | Lost 11 allies 8039 | -6/Garrison | Phase Generator disabled 8063 | -6/Garrison | Discovered new exit (range 49) 8063 | -6/Garrison | Discovered new exit (range 83) 8063 | -6/Garrison | Discovered new exit (range 72) 8129 | -6/Garrison | Build established: Bothacker-Skirmisher 8198 | -6/Garrison | Triggered checkpoint 8235 | -6/Garrison | Garrison Relay disabled 8239 | -6/Garrison | Lost 3 parts (1n2u) 8497 | -6/Garrison | Spotted B-90 Cyclops 8540 | -6/Garrison | Expanded RIF knowledge: Autooverride 8563 | -6/Garrison | Triggered checkpoint 8578 | -6/Garrison | Entered Factory 8605 | -6/Factory | Discovered new exit (range 14) 8692 | -6/Factory | Discovered new exit (range 5) 8721 | -6/Factory | Build established: Botlord-Tank 9408 | -6/Factory | Fabricated A-15 Conveyor? 9424 | -6/Factory | Build established: Botlord-Skirmisher 9445 | -6/Factory | Cargo convoy interrupted 9518 | -6/Factory | System corruption reached 10% 9535 | -6/Factory | Released all parts (13) 9598 | -6/Factory | Core integrity fell below 50% 9623 | -6/Factory | Core integrity fell below 20% 9633 | -6/Factory | Identified exit to Garrison 9633 | -6/Factory | Entered Garrison 9671 | -6/Garrison | Destroyed by H-66 Slayer with Heavy Assault Rifle Last Messages --------------- >>Unlock Access door unlocked. 09633_ EXIT=UNLOCKED: GARRISON LOCATION=GARRISON GOAL=ESCAPE 09633_ Receiving FarCom transmissions... 09642_ Connecting with Garrison Terminal... >>Download(Navigation) Retrieving Factory patrol records... Downloaded protocol data. 09660_ ALERT: Dispatching investigation squad to Factory. 09660_ Penetrated by Slug. 09660_ Slug penetrates Wall. 09667_ Connecting with Garrison Terminal... >>Access(Emergency) Found 34 emergency access points. Map updated. 09671_ PCA5#HS X0GG|VMRTXHQ2U 09671_ Penetrated by Slug. Map ----- +----------------------------------------------------+ | ?????????????????????????????????????????????????? | | ?????????????????????????????????????????????????? | | ??????????????????????????????+??????+???????????? | | ?????????????????????????????????????????????????? | | ?????????????????????????????????????????????????? | | ?????????????????????????????????????+???????????? | | ?????????????????????????????????????????????????? | | ???????????????????????????????+?????????????????? | | ?????????????????????????????????????????????????? | | ?????????????????????????????????????????????????? | | ????????????????????????e?e?# ??????????????????? | | ??????????????????????#""""## ##????????????????? | | ?????????????????? ?? #???+????????????? | | ???????+????????? ? ????????????????? | | ???????+????????? ?? g ????????????????? | | ?????????????????# ?# ## #????????????????? | | ?????????????????# ## ##gl #????????????????? | | ?????????????????" "g???????????????? | | ?????????????????? "????????????????? | | ??????????????????? "g???????????????? | | ?????????????????"??? "g???????????????? | | ?????????????????# ??# ## #????????????????? | | ?????????????????# ## ## ###########??????? | | ?????????????????# +??????? | | ?????????????????# h +??????? | | ?????????????????# @ ##T##### #??????? | | ?????????????????## ##""""#########???# #??????? | | ????????????????????????h??????????????# #??????? | | ???????????????????????????????????????# #??????? | | ???????????????????????????????????????# #??????? | | ???????????????????????????????????????# #??????? | | ???????????????????????????????????????# #??????? | | ???????????????????????????????????????# #??????? | | ???????????????????????????????????????# #??????? | | ???????????????????????????????????????# #??????? | | ???????????????????????????????????????# #??????? | | ????+??????????????++??????????????????# #??????? | | ???????????????????????????????????????# #??????? | | ???????????????????????????????????????# #??????? | | ???????????????????????????????????????# +??????? | | ???????????????????????????????????????# #??????? | | ???????????????????????????????????????# #??????? | | ???????????????????????????????????????# #??????? | | ???????????????????????????????????????# ######## | | ???????????????????????????????????????# | | ???????????????????????????????????????# | | ??+????????????????????????????????????########### | | ?????????????????????????????????????????????????? | | ?????????????????????????????????????????????????? | | ?????????????????????????????????????????????????? | +----------------------------------------------------+ Best States ------------- Heat Dissipation 65 Energy Generation 25 Energy Capacity 310 Matter Stores 500 Matter Capacity 500 Sight Range 16 Robot Scan Range 14 Terrain Scan Density 10 Armor Coverage 750 Propulsion Shielding 33 Evasion (%) 63 Recoil Reduction 4 Matter Filtering 30 Particle Charging 20 Kinecelleration 40 Offensive Hacking 10 Defensive Hacking 12 Relay Coupler Types 4 Relay Coupler Value 111 Item Schematics ----------------- Hcp. Storage Unit | -8/Materials | Hacked Remote Datajack | -8/Materials | Scanalyzed Imp. Remote Datajack | -8/Materials | Scanalyzed Imp. Datajack | -8/Materials | Scanalyzed Robot Schematics ------------------ None Fabricated ------------ A-15 Conveyor | x1 | -6/Factory | Preloaded Alien Tech Used ----------------- None Achievements -------------- None Challenges ------------ None Game ------ Seed CarbideTrapRouter Manual? 0 Play Time 02:08:32 Cumulative 118.7 hours Start 2024.05.19 @ 23:44:40 End 2024.05.20 @ 14:26:15 Sessions 3 Manual Loads 0 Difficulty Rogue Special Mode None Game No. 94 Rogue 55 Adventurer 32 Explorer 7 Win Type - Total 0 Types 0/0/0/0/0/0/0/0/0 Lore% 29 Gallery% 63 Achievement% 47 Wizard Run 0 Options --------- Layout 2 ASCII 0 Keyboard 0 Movement Numpad Keybinds 0 Fullscreen 2 Font 24/Smallcaps Map View 50x44 Zoom Use 0% Tactical HUD 1 Map Filters NONE Filters NONE Steam SD RUN: d9bab6aa-d8f8-45a9-8877-4f9c1b4feae7